[Event "17th Memorial Lezcano Montalvo 2025"]
[Site "Gran Canaria"]
[Date "2025.04.12"]
[Round "1.1"]
[White "Alsina Leal, Daniel"]
[Black "Almeida Cubas, Mirella"]
[Result "1-0"]
[Annotator "TA"]
[ECO "B31"]
[WhiteElo "2496"]
[BlackElo "1824"]
[PlyCount "51"]
[EventDate "2025.04.13"]
[EventType "swiss"]
[EventCountry "ESP"]
[SourceTitle "playchess.com"]
[Source "ChessBase"]
[SourceQuality "1"]
[TimeControl "5400+30"]

{[%evp 20,51,48,31,47,44,45,25,66,66,70,44,45,25,231,235,245,243,259,244,239,218,565,564,570,566,561,544,552,545,561,560,855,831]} 1. e4 {[%emt 0:00:04]} c5 {[%emt 0:00:14]} 2. Nf3 {[%emt 0:00:14]} Nc6 {[%emt 0:00:24]} 3. Bb5 {[%emt 0:00:36]} g6 {[%emt 0:02:44]} 4. O-O {[%emt 0:01:41]} Bg7 {[%emt 0:01:20]} 5. c3 {[%emt 0:00:12]} Nf6 {[%emt 0:03:59]} 6. Re1 {[%emt 0:00:55]} O-O {[%emt 0:03:21]} 7. d4 {[%emt 0:01:04]} cxd4 {[%emt 0:02:23]} 8. cxd4 {[%emt 0:00:06]} d6 {[%emt 0:01:38]} 9. h3 {[%emt 0:00:57]} Bd7 {[%emt 0:03:21]} 10. Nc3 {[%emt 0:00:36]} a6 {[%emt 0:01:57]} 11. Bf1 {[%emt 0:03:14]} b5 {[%emt 0:03:06][%cal Bb7b5,Bb5b4][%mdl 32] B31: Sicilian: 2...Nc6 3 Bb5 g6.} 12. e5 {[%emt 0:07:48]} Ne8 {[%emt 0:04:56]} 13. Bf4 {[%emt 0:02:21]} Bc8 $146 {[%emt 0:07:01] White has an edge.} (13... dxe5 14. dxe5 Nc7 15. Qd2 Bf5 16. Qe3 Nb4 17. Red1 Qc8 18. Nd4 Ncd5 19. Nxd5 Nxd5 {0-1 Schwabeneder,F (2431)-Dourerassou,J (2477) Titled Tuesday intern op 14th April blitz 2020 (4)}) 14. a4 {[%emt 0:16:55] White is more active.} b4 {[%emt 0:03:53]} 15. Ne4 {[%emt 0:00:45]} dxe5 {[%emt 0:07:01]} 16. dxe5 {[%emt 0:01:26] Black must now prevent Rc1.} Bb7 $2 {[%emt 0:04:35] [#]} (16... Qxd1 $1 $11 {and Black has nothing to worry.} 17. Raxd1 (17. Rexd1 Nc7 $14) 17... Nc7) 17. Nc5 $18 {[%emt 0:02:49]} Qxd1 {[%emt 0:06:48]} 18. Rexd1 {[%emt 0:02:31]} Bc8 {[%emt 0:00:49]} 19. Nd7 {[%emt 0:02:38]} Bxd7 {[%emt 0:01:16]} 20. Rxd7 {[%emt 0:00:08]} Ra7 $2 {[%emt 0:04:24] [#]} (20... g5 {is a better chance.}) 21. Rxa7 {[%emt 0:00:40] White is clearly winning.} Nxa7 {[%emt 0:00:11]} 22. Rc1 {[%emt 0:00:21] Wards off Nc7} f6 {[%emt 0:04:35][%cal Bf7f6,Bf6e5,Be5e4][%mdl 32]} 23. Be3 {[%emt 0:02:43]} fxe5 {[%emt 0:01:20]} 24. Bxa7 {[%emt 0:01:26]} e4 {[%emt 0:00:49]} 25. Nd4 {[%emt 0:02:11]} e5 {[%emt 0:03:00]} 26. Ne6 {[%emt 0:00:52] Black did not feel at home in the position after the opening.   Weighted Error Value: White=0.06 (flawless) /Black=0.68  Loses game:     	---       	Black=1      Mistake:       	---       	Black=1      Inaccurate:     	White=1     	Black=2      OK:         	White=5     	Black=7      Best:        	White=2     	---} 1-0

[Event "17th Memorial Lezcano Montalvo 2025"]
[Site "Gran Canaria"]
[Date "2025.04.12"]
[Round "1.2"]
[White "Schmitz, Manuela"]
[Black "Kaczur, Florian"]
[Result "0-1"]
[Annotator "TA"]
[ECO "D30"]
[WhiteElo "1815"]
[BlackElo "2495"]
[PlyCount "62"]
[EventDate "2025.04.13"]
[EventType "swiss"]
[EventCountry "ESP"]
[SourceTitle "playchess.com"]
[Source "ChessBase"]
[SourceQuality "1"]
[TimeControl "5400+30"]

{[%evp 9,62,22,13,20,47,46,56,0,0,6,27,0,41,20,22,0,43,25,38,45,137,54,55,32,72,49,97,24,31,32,35,0,0,0,80,-43,-33,-62,-65,-56,-69,-59,-50,-110,-118,-127,-112,-165,-174,-414,-410,-5185,-5185,-1893,-1711]} 1. d4 {[%emt 0:00:22]} Nf6 {[%emt 0:00:26]} 2. Nf3 {[%emt 0:00:12]} e6 {[%emt 0:01:38]} 3. c4 {[%emt 0:00:12]} d5 {[%emt 0:00:19]} 4. Bg5 {[%emt 0:00:48]} Nbd7 {[%emt 0:01:27]} 5. e3 {[%emt 0:00:40]} h6 {[%emt 0:00:10]} 6. Bh4 {[%emt 0:00:18] D30: Queen's Gambit Declined: Systems without Nc3.} g5 {[%emt 0:01:07]} 7. Bg3 {[%emt 0:00:19]} Ne4 {[%emt 0:00:06]} 8. Bd3 {[%emt 0:06:18]} (8. Nc3 $14) 8... Nxg3 $11 {[%emt 0:00:20]} 9. hxg3 {[%emt 0:00:14]} Bg7 {[%emt 0:00:51]} 10. Nc3 {[%emt 0:02:46]} c6 {[%emt 0:00:22]} 11. Rc1 $146 {[%emt 0:01:53]} (11. Qc2 e5 12. Nxe5 Nxe5 13. dxe5 Bxe5 14. cxd5 cxd5 15. Rd1 Be6 16. O-O Kf8 17. Bf5 {1-0 Mitic,A (1911)-Tomic,M (1777) Pirot SEE Schev 2nd 2024 (2.3)}) 11... Qe7 {[%emt 0:04:43]} 12. Qc2 {[%emt 0:07:09]} Nb6 {[%emt 0:05:02]} 13. b3 {[%emt 0:05:34]} g4 {[%emt 0:10:38]} 14. Nh4 {[%emt 0:03:08]} e5 {[%emt 0:04:36]} ({Better is} 14... O-O $14) 15. dxe5 {[%emt 0:03:53]} (15. c5 $16) 15... dxc4 {[%emt 0:00:14]} 16. bxc4 {[%emt 0:01:20]} Bxe5 {[%emt 0:02:10]} 17. O-O {[%emt 0:01:56]} O-O {[%emt 0:04:08]} (17... Be6 $14 {is superior.}) 18. Bh7+ {[%emt 0:11:43]} ({White should try} 18. Ne2 $16) 18... Kh8 {[%emt 0:00:57][%cal Oe5c3] [#]} 19. Bf5 {[%emt 0:02:39]} Nxc4 {[%emt 0:09:06]} 20. Ne4 {[%emt 0:05:26]} b5 {[%emt 0:08:20]} 21. Rfd1 {[%emt 0:04:48]} Bb2 {[%emt 0:09:20]} (21... Re8 $11) 22. Rb1 {[%emt 0:02:13]} (22. Bxc8 $16 Rfxc8 (22... Bxc1 $2 {too greedy.} 23. Rd7 $18) 23. Rd6) 22... Bg7 $15 {[%emt 0:02:58]} 23. Bxc8 {[%emt 0:01:45]} Raxc8 {[%emt 0:00:19]} 24. Nf5 {[%emt 0:00:32]} Qe5 {[%emt 0:01:07]} 25. Nxg7 {[%emt 0:00:31]} Kxg7 {[%emt 0:00:41]} 26. Rb3 {[%emt 0:00:57]} (26. Rbc1 $15) 26... Rfd8 $17 {[%emt 0:04:19] Hoping for ...Rxd1+.} 27. Nc3 {[%emt 0:02:32]} Qf6 {[%emt 0:03:40] Black has more active pieces.} 28. Qe2 {[%emt 0:02:17] [#]} (28. Ne2 $17 {was worth a try.}) 28... h5 $1 $19 {[%emt 0:00:25]} 29. Rxd8 $2 {[%emt 0:03:52]} (29. Ne4 Qe5 30. Rbd3) 29... Rxd8 {[%emt 0:00:05]} 30. Nxb5 {[%emt 0:00:24]} (30. Nb1 $142) 30... Qa1+ {[%emt 0:01:47]} 31. Kh2 {[%emt 0:01:44]} Rd1 {[%emt 0:00:53] Weighted Error Value: White=0.63/Black=0.15 (very precise)   Mistake:       	White=8     	Black=3      Inaccurate:     	White=3     	Black=3      OK:         	White=7     	Black=7      Best:        	White=1     	Black=4} 0-1

[Event "17th Memorial Lezcano Montalvo 2025"]
[Site "Gran Canaria"]
[Date "2025.04.12"]
[Round "1.3"]
[White "Korneev, Oleg"]
[Black "Vargas Tinoco, Martin Alonso"]
[Result "1-0"]
[Annotator "TA"]
[ECO "B33"]
[WhiteElo "2466"]
[BlackElo "1811"]
[PlyCount "95"]
[EventDate "2025.04.13"]
[EventType "swiss"]
[EventCountry "ESP"]
[SourceTitle "playchess.com"]
[Source "ChessBase"]
[SourceQuality "1"]
[TimeControl "5400+30"]

{[%evp 21,95,62,76,74,72,68,100,100,100,99,109,105,107,100,100,99,109,112,114,91,118,114,115,123,134,112,135,98,112,79,85,91,92,97,264,264,233,190,193,194,194,195,193,195,212,225,225,229,233,231,238,234,232,229,290,277,418,366,537,516,998,1016,985,1010,836,858,1992,1800,29986,29987,29988,29989,29991,29992,29994,29995]} 1. e4 {[%emt 0:00:02]} c5 {[%emt 0:00:23]} 2. Nf3 {[%emt 0:01:52][%cal Bg1f3,Bf3d4,Bd4b5,Bb5a3,Ba3c4][%mdl 32]} Nc6 {[%emt 0:00:09]} 3. d4 {[%emt 0:00:06]} cxd4 {[%emt 0:00:05]} 4. Nxd4 {[%emt 0:00:02]} e5 {[%emt 0:00:14]} 5. Nb5 {[%emt 0:00:23]} d6 {[%emt 0:01:05]} 6. N1c3 {[%emt 0:00:26]} a6 {[%emt 0:00:16]} 7. Na3 {[%emt 0:00:02]} Nf6 {[%emt 0:00:23]} 8. Bg5 {[%emt 0:04:51]} Be7 {[%emt 0:03:21]} 9. Nc4 {[%emt 0:03:20]} Nd4 {[%emt 0:08:38]} 10. Bxf6 {[%emt 0:01:28]} Bxf6 {[%emt 0:08:08]} 11. Nd5 {[%emt 0:00:20]} b5 {[%emt 0:03:49]} 12. Ncb6 {[%emt 0:00:54] Excellent horsemanship. B33: Sicilian: Pelikan and Sveshnikov Variations.} Rb8 {[%emt 0:00:24]} 13. Nxc8 {[%emt 0:01:49]} Rxc8 {[%emt 0:01:04]} 14. c3 {[%emt 0:00:02] White is better.} Ne6 {[%emt 0:08:03]} 15. a4 {[%emt 0:02:12]} Rb8 {[%emt 0:07:00]} 16. axb5 {[%emt 0:00:07][%csl Od5] Strong Square White (d5)} axb5 {[%emt 0:00:07]} 17. Bd3 {[%emt 0:14:42] White is much more active.} O-O {[%emt 0:05:18]} 18. O-O {[%emt 0:00:03]} Nf4 $146 {[%emt 0:07:34] [#]} (18... Bg5 19. g3 Nc5 20. Bc2 Kh8 21. b4 Ne6 22. Ra6 Qd7 23. Qd3 g6 24. f4 exf4 25. gxf4 {1-0 Terletsky,O (2246)-Liyanage,R (2178) Titled Tuesday intern op 24th Nov blitz 2020 (4)}) 19. Nb4 $1 {[%emt 0:03:52]} Qd7 {[%emt 0:06:08] Dodges Nc6} 20. Be2 {[%emt 0:05:07]} Qb7 {[%emt 0:07:56]} 21. g3 {[%emt 0:01:49]} Nxe2+ {[%emt 0:04:34]} 22. Qxe2 {[%emt 0:00:12]} Ra8 {[%emt 0:01:46]} 23. Nd5 {[%emt 0:00:51]} Rfc8 {[%emt 0:05:12]} 24. Rfb1 {[%emt 0:21:34]} Kf8 {[%emt 0:06:20] White has a strong knight and is better} 25. Ra3 {[%emt 0:00:33]} Ra4 {[%emt 0:00:57]} 26. Kg2 {[%emt 0:02:08]} Rca8 {[%emt 0:00:24]} 27. Rb3 $36 {[%emt 0:00:38][%csl Ob5][%mdl 2048] White attacks a weakness Keeping Black busy.} R8a5 {[%emt 0:02:04] A mistake that costs the game.} (27... Rb8 $16 28. Rd1 Bd8) 28. c4 $18 {[%emt 0:01:03]} b4 {[%emt 0:02:59]} 29. Nc3 {[%emt 0:01:20]} Ra1 {[%emt 0:00:54]} 30. Rxa1 {[%emt 0:00:11]} Rxa1 {[%emt 0:00:08]} 31. Nd5 {[%emt 0:00:05]} Ra4 {[%emt 0:02:02]} 32. Qd2 {[%emt 0:00:17]} Bd8 {[%emt 0:00:28]} 33. Rxb4 {[%emt 0:00:59]} ({But not} 33. Nxb4 $6 Qxe4+ 34. f3 Qg6 $14) 33... Rxb4 {[%emt 0:00:29]} 34. Qxb4 {[%emt 0:00:03]} Qxb4 {[%emt 0:00:12]} 35. Nxb4 {[%emt 0:00:02][%mdl 4096] Endgame KB-KN. White is a pawn up.} Ke8 {[%emt 0:00:26]} 36. Nd5 {[%emt 0:00:05]} Kd7 {[%emt 0:00:13]} 37. b4 {[%emt 0:00:10][%cal Bb2b4,Bb4b5][%mdl 32]} g6 {[%emt 0:02:49]} 38. f4 {[%emt 0:03:40]} Ke6 {[%emt 0:01:04]} (38... Kc6 $142 39. f5 Kb7) 39. Kf3 {[%emt 0:00:44]} f5 {[%emt 0:00:12]} (39... exf4 {was necessary.} 40. gxf4 (40. Kxf4 h5 $18) 40... Kd7) 40. b5 {[%emt 0:02:13]} fxe4+ {[%emt 0:01:22]} (40... exf4 $142 41. exf5+ (41. Nxf4+ Kd7 $18) (41. Kxf4 fxe4 42. Kxe4 Kd7 $18) 41... Kxf5 42. gxf4 (42. Nxf4 Bb6 $18) 42... Ke6) 41. Kxe4 {[%emt 0:00:04] [#] Threatens to win with fxe5.} exf4 {[%emt 0:00:11]} 42. Nxf4+ {[%emt 0:04:49]} Kd7 {[%emt 0:00:48]} 43. Kd5 {[%emt 0:00:06]} g5 {[%emt 0:02:41]} 44. Ne6 {[%emt 0:00:07] Threatening mate with Nxd8.} Be7 {[%emt 0:00:46]} 45. g4 {[%emt 0:00:24] White mates.} h6 {[%emt 0:00:45]} 46. b6 {[%emt 0:00:08]} Kc8 {[%emt 0:02:36]} 47. Kc6 {[%emt 0:00:03]} Kb8 {[%emt 0:00:32]} 48. Nc7 {[%emt 0:00:05] Weighted Error Value: White=0.06 (flawless) /Black=0.58  Loses game:     	---       	Black=1      Mistake:       	---       	Black=3      Inaccurate:     	---       	Black=1      OK:         	White=16    	Black=10     Best:        	---       	Black=1      Strong:       	White=1     	---} 1-0

[Event "17th Memorial Lezcano Montalvo 2025"]
[Site "Gran Canaria"]
[Date "2025.04.12"]
[Round "1.4"]
[White "Sanchez Montesdeoca, Isaac"]
[Black "Petriashvili, Nikoloz"]
[Result "0-1"]
[Annotator "RC"]
[ECO "B34"]
[WhiteElo "1807"]
[BlackElo "2459"]
[PlyCount "36"]
[EventDate "2025.04.13"]
[EventType "swiss"]
[EventCountry "ESP"]
[SourceTitle "playchess.com"]
[Source "ChessBase"]
[SourceQuality "1"]
[TimeControl "5400+30"]

1. e4 {[%emt 0:00:02]} c5 {[%emt 0:00:22]} 2. Nf3 {[%emt 0:00:05]} Nc6 {[%emt 0:00:04]} 3. d4 {[%emt 0:01:52]} cxd4 {[%emt 0:00:43]} 4. Nxd4 {[%emt 0:00:08]} g6 {[%emt 0:00:04]} 5. Bc4 {[%emt 0:01:06]} Bg7 {[%emt 0:00:12]} 6. c3 {[%emt 0:00:08]} d6 {[%emt 0:01:49]} 7. O-O {[%emt 0:10:42]} Nf6 {[%emt 0:00:22]} 8. f3 {[%emt 0:04:24]} O-O {[%emt 0:00:55]} 9. Na3 {[%emt 0:01:14]} Nxd4 {[%emt 0:05:54]} 10. cxd4 {[%emt 0:00:48]} d5 {[%emt 0:00:15]} 11. exd5 {[%emt 0:06:18]} Nxd5 {[%emt 0:00:06]} 12. Nc2 {[%emt 0:01:40]} b6 {[%emt 0:01:01]} 13. Qe2 {[%emt 0:06:12]} Bb7 {[%emt 0:00:19]} 14. Re1 {[%emt 0:01:55]} e6 {[%emt 0:00:26]} 15. Bd2 {[%emt 0:04:56]} Rc8 {[%emt 0:00:12]} 16. Bb3 {[%emt 0:03:07]} Qd6 {[%emt 0:01:00]} 17. Bxd5 {[%emt 0:01:27]} Rxc2 {[%emt 0:02:40]} 18. Bxb7 {[%emt 0:03:45]} Qxd4+ {[%emt 0:00:11]} 0-1

[Event "17th Memorial Lezcano Montalvo 2025"]
[Site "Gran Canaria"]
[Date "2025.04.12"]
[Round "1.5"]
[White "Maerevoet, Sim"]
[Black "Juan Miguel, Javier"]
[Result "1-0"]
[Annotator "RC"]
[ECO "D02"]
[WhiteElo "2451"]
[BlackElo "1803"]
[PlyCount "89"]
[EventDate "2025.04.13"]
[EventType "swiss"]
[EventCountry "ESP"]
[SourceTitle "playchess.com"]
[Source "ChessBase"]
[SourceQuality "1"]
[TimeControl "5400+30"]

1. Nf3 {[%emt 0:00:07]} d5 {[%emt 0:00:12]} 2. g3 {[%emt 0:00:15]} e6 {[%emt 0:00:21]} 3. Bg2 {[%emt 0:00:09]} Bd6 {[%emt 0:00:12]} 4. d4 {[%emt 0:03:30]} Nf6 {[%emt 0:01:05]} 5. c4 {[%emt 0:01:45]} b6 {[%emt 0:01:51]} 6. O-O {[%emt 0:01:30]} Nbd7 {[%emt 0:02:21]} 7. cxd5 {[%emt 0:02:22]} exd5 {[%emt 0:01:18]} 8. Nc3 {[%emt 0:00:43]} O-O {[%emt 0:02:19]} 9. Nb5 {[%emt 0:02:27]} Qe7 {[%emt 0:02:08]} 10. Nxd6 {[%emt 0:04:26]} Qxd6 {[%emt 0:00:32]} 11. Bf4 {[%emt 0:07:31]} Qb4 {[%emt 0:02:26]} 12. a3 {[%emt 0:07:51]} Qxb2 {[%emt 0:02:47]} 13. Qd3 {[%emt 0:02:49]} c5 {[%emt 0:07:38]} 14. Rfb1 {[%emt 0:02:08]} c4 {[%emt 0:00:47]} 15. Qd1 {[%emt 0:01:01]} Qc3 {[%emt 0:01:56]} 16. Bd2 {[%emt 0:00:42]} Qxa1 {[%emt 0:01:17]} 17. Rxa1 {[%emt 0:00:09]} Ba6 {[%emt 0:01:10]} 18. Qa4 {[%emt 0:01:35]} Bb7 {[%emt 0:00:17]} 19. Ne5 {[%emt 0:02:05]} Nxe5 {[%emt 0:02:03]} 20. dxe5 {[%emt 0:00:06]} Ng4 {[%emt 0:01:26]} 21. Qd7 {[%emt 0:00:37]} Bc8 {[%emt 0:00:28]} 22. Qxd5 {[%emt 0:00:15]} Be6 {[%emt 0:00:14]} 23. Qxa8 {[%emt 0:00:15]} Rxa8 {[%emt 0:00:05]} 24. Bxa8 {[%emt 0:00:05]} Nxe5 {[%emt 0:00:16]} 25. Bc3 {[%emt 0:00:10]} Nd7 {[%emt 0:00:21]} 26. Rd1 {[%emt 0:00:16]} h6 {[%emt 0:00:07]} 27. Bd5 {[%emt 0:00:56]} Bxd5 {[%emt 0:00:33]} 28. Rxd5 {[%emt 0:00:03]} Nc5 {[%emt 0:00:07]} 29. Rd8+ {[%emt 0:01:23]} Kh7 {[%emt 0:00:05]} 30. Bd4 {[%emt 0:00:30]} Ne6 {[%emt 0:00:10]} 31. Rd7 {[%emt 0:00:05]} b5 {[%emt 0:00:10]} 32. Bxa7 {[%emt 0:00:14]} Kg6 {[%emt 0:00:35]} 33. Be3 {[%emt 0:00:15]} Kf6 {[%emt 0:00:19]} 34. Rb7 {[%emt 0:00:17]} c3 {[%emt 0:00:16]} 35. Rxb5 {[%emt 0:00:16]} c2 {[%emt 0:00:05]} 36. Rb2 {[%emt 0:00:06]} Ke5 {[%emt 0:00:24]} 37. Rxc2 {[%emt 0:00:06]} f5 {[%emt 0:00:07]} 38. a4 {[%emt 0:00:08]} g5 {[%emt 0:00:04]} 39. a5 {[%emt 0:00:08]} f4 {[%emt 0:00:42]} 40. Bb6 {[%emt 0:01:25]} fxg3 {[%emt 0:00:18]} 41. hxg3 {[%emt 0:00:13]} h5 {[%emt 0:00:05]} 42. a6 {[%emt 0:00:06]} h4 {[%emt 0:00:04]} 43. a7 {[%emt 0:00:08]} hxg3 {[%emt 0:00:03]} 44. fxg3 {[%emt 0:00:08]} g4 {[%emt 0:00:04]} 45. a8=Q {[%emt 1:01:44]} 1-0

[Event "17th Memorial Lezcano Montalvo 2025"]
[Site "Gran Canaria"]
[Date "2025.04.12"]
[Round "1.6"]
[White "Oramas Medina, Miguel"]
[Black "Larino Nieto, David"]
[Result "0-1"]
[Annotator "RC"]
[ECO "B01"]
[WhiteElo "1796"]
[BlackElo "2448"]
[PlyCount "40"]
[EventDate "2025.04.13"]
[EventType "swiss"]
[EventCountry "ESP"]
[SourceTitle "playchess.com"]
[Source "ChessBase"]
[SourceQuality "1"]
[TimeControl "5400+30"]

1. e4 {[%emt 0:00:04]} d5 {[%emt 0:00:01]} 2. exd5 {[%emt 0:00:24]} Qxd5 {[%emt 0:00:02]} 3. Nc3 {[%emt 0:00:10]} Qa5 {[%emt 0:00:02]} 4. Bc4 {[%emt 0:00:38]} Nf6 {[%emt 0:00:05]} 5. d3 {[%emt 0:01:17]} a6 {[%emt 0:00:30]} 6. Bd2 {[%emt 0:01:24]} Bg4 {[%emt 0:01:09]} 7. f3 {[%emt 0:03:55]} Bh5 {[%emt 0:01:40]} 8. h4 {[%emt 0:04:16]} Qf5 {[%emt 0:03:26]} 9. g4 {[%emt 0:07:42]} Nxg4 {[%emt 0:04:22]} 10. fxg4 {[%emt 0:00:04]} Bxg4 {[%emt 0:00:06]} 11. Nge2 {[%emt 0:02:38]} e6 {[%emt 0:01:20]} 12. Be3 {[%emt 0:06:00]} Nc6 {[%emt 0:02:07]} 13. d4 {[%emt 0:08:59]} Bb4 {[%emt 0:04:19]} 14. Qd3 {[%emt 0:06:36]} Qa5 {[%emt 0:01:22]} 15. Rg1 {[%emt 0:09:05]} Bf5 {[%emt 0:00:35]} 16. Qd2 {[%emt 0:02:21]} O-O-O {[%emt 0:00:18]} 17. O-O-O {[%emt 0:02:44]} Ne5 {[%emt 0:00:50]} 18. dxe5 {[%emt 0:04:10]} Rxd2 {[%emt 0:00:02]} 19. Rxd2 {[%emt 0:00:15]} Bc5 {[%emt 1:17:44]} 20. Rg3 {[%emt 0:37:48]} Bxe3 {[%emt 0:00:30]} 0-1

[Event "17th Memorial Lezcano Montalvo 2025"]
[Site "Gran Canaria"]
[Date "2025.04.12"]
[Round "1.7"]
[White "Pap, Misa"]
[Black "Reinoso Andre, Lazaro Javier"]
[Result "1-0"]
[Annotator "RC"]
[ECO "C02"]
[WhiteElo "2444"]
[BlackElo "1796"]
[PlyCount "45"]
[EventDate "2025.04.13"]
[EventType "swiss"]
[EventCountry "ESP"]
[SourceTitle "playchess.com"]
[Source "ChessBase"]
[SourceQuality "1"]
[TimeControl "5400+30"]

1. e4 {[%emt 0:00:18]} c5 {[%emt 0:00:14]} 2. Nf3 {[%emt 0:00:30]} Nc6 {[%emt 0:00:17]} 3. c3 {[%emt 0:00:24]} e6 {[%emt 0:00:58]} 4. d4 {[%emt 0:00:12]} d5 {[%emt 0:00:31]} 5. e5 {[%emt 0:00:06]} cxd4 {[%emt 0:00:06]} 6. cxd4 {[%emt 0:00:06]} Nge7 {[%emt 0:03:05]} 7. Bd3 {[%emt 0:01:29]} Ng6 {[%emt 0:01:34]} 8. h4 {[%emt 0:00:12]} Bb4+ {[%emt 0:02:06]} 9. Nc3 {[%emt 0:00:25]} Nge7 {[%emt 0:00:29]} 10. a3 {[%emt 0:01:22]} Ba5 {[%emt 0:05:38]} 11. b4 {[%emt 0:00:50]} Bb6 {[%emt 0:01:10]} 12. Nb5 {[%emt 0:07:50]} Bc7 {[%emt 0:01:21]} 13. Bb2 {[%emt 0:17:34]} a6 {[%emt 0:00:09]} 14. Nxc7+ {[%emt 0:00:12]} Qxc7 {[%emt 0:00:15]} 15. h5 {[%emt 0:00:24]} O-O {[%emt 0:04:48]} 16. Rc1 {[%emt 0:06:53]} Qb6 {[%emt 0:00:55]} 17. Bb1 {[%emt 0:03:51]} f5 {[%emt 0:08:10]} 18. exf6 {[%emt 0:01:53]} gxf6 {[%emt 0:08:16]} 19. Rh3 {[%emt 0:05:39]} e5 {[%emt 0:02:53]} 20. Rg3+ {[%emt 0:00:06]} Kh8 {[%emt 0:00:09]} 21. dxe5 {[%emt 0:00:07]} fxe5 {[%emt 0:00:57]} 22. Qd2 {[%emt 0:00:24]} d4 {[%emt 0:03:24]} 23. Qh6 {[%emt 0:01:48]} 1-0

[Event "17th Memorial Lezcano Montalvo 2025"]
[Site "Gran Canaria"]
[Date "2025.04.12"]
[Round "1.8"]
[White "Basualdo De Ornelas, Jorge"]
[Black "Martinez Ramirez, Lennis"]
[Result "0-1"]
[Annotator "RC"]
[ECO "B28"]
[WhiteElo "1794"]
[BlackElo "2443"]
[PlyCount "78"]
[EventDate "2025.04.13"]
[EventType "swiss"]
[EventCountry "ESP"]
[SourceTitle "playchess.com"]
[Source "ChessBase"]
[SourceQuality "1"]
[TimeControl "5400+30"]

1. e4 {[%emt 0:00:02]} c5 {[%emt 0:00:23]} 2. Nf3 {[%emt 0:00:02]} a6 {[%emt 0:00:27]} 3. g3 {[%emt 0:02:06]} b5 {[%emt 0:00:22]} 4. Bg2 {[%emt 0:01:33]} Bb7 {[%emt 0:00:02]} 5. O-O {[%emt 0:00:11]} e6 {[%emt 0:02:55]} 6. Re1 {[%emt 0:01:35]} Nc6 {[%emt 0:02:11]} 7. c3 {[%emt 0:00:16]} Nf6 {[%emt 0:03:45]} 8. d4 {[%emt 0:00:20]} d5 {[%emt 0:01:43]} 9. exd5 {[%emt 0:06:44]} Nxd5 {[%emt 0:01:14]} 10. Bg5 {[%emt 0:05:36]} Qd7 {[%emt 0:02:53]} 11. a4 {[%emt 0:00:21]} h6 {[%emt 0:00:14]} 12. axb5 {[%emt 0:00:24]} axb5 {[%emt 0:00:16]} 13. Rxa8+ {[%emt 1:17:50]} Bxa8 {[%emt 0:00:01]} 14. Bd2 {[%emt 0:00:00]} cxd4 {[%emt 0:02:07]} 15. Nxd4 {[%emt 0:00:00]} Nxd4 {[%emt 0:00:09]} 16. cxd4 {[%emt 0:00:00]} b4 {[%emt 0:00:12]} 17. Bc1 {[%emt 0:00:00]} Be7 {[%emt 0:01:00]} 18. Nd2 {[%emt 0:00:00]} O-O {[%emt 0:01:05]} 19. Nc4 {[%emt 0:00:00]} Qb5 {[%emt 0:04:03]} 20. Ne5 {[%emt 0:00:00]} Nf6 {[%emt 0:00:09]} 21. Bxa8 {[%emt 0:00:00]} Rxa8 {[%emt 0:00:06]} 22. Qf3 {[%emt 0:00:00]} Qd5 {[%emt 0:00:25]} 23. Bf4 {[%emt 0:00:00]} Qxf3 {[%emt 0:06:07]} 24. Nxf3 {[%emt 0:00:00]} Ra2 {[%emt 0:00:02]} 25. Re2 {[%emt 0:00:00]} Nd5 {[%emt 0:00:08]} 26. Be5 {[%emt 0:00:00]} g5 {[%emt 0:04:09]} 27. g4 {[%emt 0:00:00]} b3 {[%emt 0:00:08]} 28. Kf1 {[%emt 0:00:00]} Bb4 {[%emt 0:03:06]} 29. Bg3 {[%emt 0:00:00]} Nc3 {[%emt 0:07:51]} 30. bxc3 {[%emt 0:00:00]} Bxc3 {[%emt 0:00:33]} 31. Re3 {[%emt 0:00:00]} b2 {[%emt 0:01:00]} 32. Rxc3 {[%emt 0:00:00]} b1=Q+ {[%emt 0:00:11]} 33. Kg2 {[%emt 0:00:00]} Rc2 {[%emt 0:07:48]} 34. Ra3 {[%emt 0:00:00]} Qb7 {[%emt 0:00:14]} 35. Rd3 {[%emt 0:00:00]} Qe4 {[%emt 0:00:49]} 36. Rb3 {[%emt 0:00:00]} f5 {[%emt 0:03:35]} 37. h3 {[%emt 0:00:00]} f4 {[%emt 0:00:29]} 38. Bh2 {[%emt 0:00:00]} Rxf2+ {[%emt 0:00:30]} 39. Kxf2 {[%emt 0:00:00]} Qc2+ {[%emt 0:00:01]} 0-1